Cogmind - Beta 11.1 @@@ ROGUE MODE // 2022.05.06 @ 16:33:29 Player: Cmdr.Laserstrahl Result: Destroyed by G-34 Mercenary with Small Laser Performance ------------- Evolutions (0) 0 Regions Visited (1) 200 Robots Destroyed (4) 20 Value Destroyed (90) 90 Prototype IDs (0) 0 Alien Tech Used (0) 0 Bonus (0) 0 TOTAL SCORE: 310 Bonus ------- None Cogmind --------- Core Integrity 0/250 Matter 300/300 Energy 99/100 System Corruption 5% Temperature Cool (14) Movement Rolling (100) Location -10/Materials Parts ------- > --- POWER (1) -------- (None) > --- PROPULSION (2) --- Compact Wheel > --- UTILITY (2) ------ Medium Storage Unit > --- WEAPON (2) ------- (None) > --- INVENTORY (10) --- Ion Engine Aluminum Leg Aluminum Leg Compact Wheel Compact Wheel Heat Sink Sensor Array Light Assault Rifle Peak State ------------ > --- POWER ------------ Ion Engine > --- PROPULSION ------- Wheel Compact Wheel > --- UTILITY ---------- Medium Storage Unit Light Armor Plating > --- WEAPON ----------- Medium Laser Light Cannon > --- INVENTORY -------- Ion Engine Aluminum Leg Aluminum Leg Compact Wheel Compact Wheel Compact Wheel Heat Sink Sensor Array EM Pulse Gun Light Assault Rifle [Rating: 8] Favorites ----------- Power Ion Engine Engine Ion Engine Propulsion Compact Wheel Wheel Compact Wheel Utility Medium Storage Unit Device Heat Sink Storage Medium Storage Unit Protection Light Armor Plating Weapon Medium Laser Energy Gun Medium Laser Ballistic Gun Light Assault Rifle Ballistic Cannon Light Cannon Special Weapon Welding Torch Build | -11 -10 ------- Run | Scr Mat Slots Evolved . | . . Power . | . . Propulsion . | . . Utility . | . . Weapon . | . . Parts Attached 14 | 7 7 Power 1 | 1 . Engine 1 | 1 . Core . | . . Reactor . | . . Propulsion 3 | 2 1 Treads . | . . Leg . | . . Wheel 3 | 2 1 Hover . | . . Flight . | . . Utility 5 | 2 3 Device 1 | . 1 Storage 3 | 2 1 Processor . | . . Hackware . | . . Protection 1 | . 1 Artifact . | . . Weapon 5 | 2 3 Energy Gun 2 | 1 1 Energy Cannon . | . . Ballistic Gun 1 | 1 . Ballistic Cannon 1 | . 1 Launcher . | . . Special Weapon 1 | . 1 Impact Weapon . | . . Slashing Weapon . | . . Piercing Weapon . | . . Special Melee Weapon . | . . Unidentified Prototypes . | . . Parts Lost 8 | . 8 Power 1 | . 1 Propulsion 2 | . 2 Utility 1 | . 1 Weapon 4 | . 4 Highest Loss Streak 8 | . 8 To Critical Strikes . | . . Average Slot Usage (%) 83 | . 83 Engine 11 | . 11 Wheel 27 | . 27 Device 1 | . 1 Storage 14 | . 14 Protection 4 | . 4 Energy Gun 13 | . 13 Ballistic Cannon 9 | . 9 Naked Turns . | . . Heaviest Build 23 | 13 23 Greatest Support 32 | 26 32 Greatest Overweight (x) . | . . Average Overweight (x) . | . . Largest Inventory Capacity 10 | 8 10 Average Capacity 9 | 7 9 Most Carried 10 | 5 10 Average Carried 6 | 2 7 Final Capacity 10 | 8 10 Final Carried 8 | 5 8 Class Distribution -------------------- 100% | Mutant Dominant Class ---------------- Mutant | -10/Materials Resources | -11 -10 ----------- Run | Scr Mat Matter Collected 340 | 273 67 Remotely . | . . Salvage Created 221 | 82 139 Parts 9 | 3 6 Haulers Intercepted . | . . Recyclers Shooed . | . . Parts Field Recycled . | . . Retrieved Matter . | . . Parts Self-Destructed . | . . Prevented . | . . Kills | -11 -10 ------- Run | Scr Mat Combat Hostiles Destroyed 2 | . 2 Guns 1 | . 1 Cannons 1 | . 1 Classes Destroyed 2 | 1 1 Recycler 2 | 1 1 Grunt 2 | . 2 Best Kill Streak 3 | 1 3 Combat Bots Only 2 | . 2 Max Kills in Single Turn 1 | 1 1 Gunslinging . | . . Exploded . | . . Melee . | . . Uniques/NPCs Destroyed . | . . Combat | -11 -10 -------- Run | Scr Mat Damage Taken 835 | . 835 Core 260 | . 260 Absorbed by Shields . | . . Core Remaining (%) 100 | 100 . Volleys Fired 20 | 3 17 Largest 2 | 2 2 Hottest 90 | 70 90 Shots Fired 39 | 6 33 Gun 28 | 6 22 Cannon 10 | . 10 Launcher . | . . Special 1 | . 1 Kinetic 15 | 3 12 Thermal 20 | 3 17 Explosive . | . . Electromagnetic 4 | . 4 Robot Hit Streak 5 | 5 4 Robot Miss Streak 6 | . 6 Penetration Max . | . . Secondary Targets . | . . Shots Hit Robots 20 | 5 15 Core Hits 6 | 2 4 Critical Kills . | . . Critical Parts Destroyed . | . . Critical Strikes . | . . Melee Attacks . | . . Impact . | . . Slashing . | . . Piercing . | . . Sneak Attacks . | . . Combat Hostiles . | . . Follow-up Attacks . | . . Damage Inflicted 325 | 54 271 Guns 175 | 54 121 Cannons 71 | . 71 Explosions 65 | . 65 Melee . | . . Ramming 14 | . 14 Kinetic 97 | 16 81 Thermal 191 | 38 153 Explosive . | . . Electromagnetic 23 | . 23 Impact . | . . Slashing . | . . Piercing . | . . Highest Corruption 5 | . 5 Average Corruption 5 | . 5 Corruption Purged . | . . Corruption Blocked . | . . Overload Shots . | . . Overflow Damage . | . . Projectiles . | . . Explosions . | . . Melee . | . . Knockbacks . | . . Impact . | . . Kinetic . | . . Secondary . | . . Self-Inflicted Damage 35 | . 35 Shots 1 | . 1 Rammed 5 | . 5 Targets Rammed 5 | . 5 Kicked . | . . Crushed . | . . Highest Temperature 161 | 50 161 Average Temperature 45 | 26 48 Received Heat Transfer 288 | . 288 Siege Activations . | . . Robots Corrupted . | . . Combat Hostiles . | . . Parts Fried . | . . Impact Corruptions . | . . Robots Melted . | . . Combat Hostiles . | . . Parts Melted . | . . Heat Transferred 520 | 111 409 Parts Sabotaged . | . . Parts Stolen . | . . Parts Stripped . | . . Power Chain Reactions 1 | . 1 Missiles Intercepted . | . . Alert | -11 -10 ------- Run | Scr Mat Peak Influence 93 | 5 93 Initial 3 | . 3 Average 35 | 2 46 Maximum Alert Level . | . . Low Security (%) 100 | 100 100 Level 1 . | . . Level 2 . | . . Level 3 . | . . Level 4 . | . . Level 5 . | . . High Security . | . . Max Security . | . . Squads Dispatched 3 | . 3 Investigation 1 | . 1 Extermination . | . . Reinforcement 2 | . 2 Assault . | . . Garrison . | . . Intercept . | . . Searches Triggered . | . . Construction Impeded . | . . Haulers Reinforced . | . . Active Scanning Responses . | . . Cargo Convoy Interrupts . | . . Stealth | -11 -10 --------- Run | Scr Mat Distress Signals 3 | . 3 Communications Jammed . | . . Distress Signals . | . . Times Spotted 17 | . 17 Peak Tracking Total 12 | . 12 Tactical Retreats 1 | . 1 Traps | -11 -10 ------- Run | Scr Mat Traps Triggered 1 | . 1 Indirectly . | . . Trap Hack Attempts . | . . Triggered . | . . Disarmed . | . . Reprogrammed . | . . Reused . | . . Traps Extracted . | . . Installed . | . . Triggered . | . . Machines | -11 -10 ---------- Run | Scr Mat Machines Disabled 1 | . 1 Max in Single Turn 1 | . 1 Machines Sabotaged . | . . Garrisons Compromised . | . . Overloaded Fab Kills . | . . Hacking | -11 -10 --------- Run | Scr Mat Machines Accessed 2 | . 2 Terminals 1 | . 1 Fabricators . | . . Repair Stations . | . . Recycling Units 1 | . 1 Scanalyzers . | . . Garrison Access . | . . Total Hacks 8 | . 8 Successful 3 | . 3 Failed 5 | . 5 Catastrophic 1 | . 1 Database Lockouts . | . . Manual . | . . Terminals 2 | . 2 Fabricators . | . . Repair Stations . | . . Recycling Units 6 | . 6 Scanalyzers . | . . Garrison Access . | . . Terminal Hacks 1 | . 1 Zone Layout 1 | . 1 Fabricator Hacks . | . . Repair Station Hacks . | . . Recycling Unit Hacks 2 | . 2 Report Inventory 1 | . 1 Retrieve Components 1 | . 1 Scanalyzer . | . . Garrison Access Hacks . | . . Unauthorized Hacks . | . . Terminals . | . . Fabricators . | . . Repair Stations . | . . Recycling Units . | . . Scanalyzers . | . . Garrison Access . | . . Data Cores Recovered . | . . Used . | . . Hacking Detections 2 | . 2 Full Trace Events . | . . Feedback Events . | . . Feedback Blocked . | . . Robot Schematics Acquired . | . . Robots Built . | . . Authchips . | . . Time . | . . Total Robot Build Rating . | . . Part Schematics Acquired . | . . Parts Built . | . . Authchips . | . . Time . | . . Total Part Build Rating . | . . Parts Repaired . | . . Time . | . . Parts Recycled . | . . Recycled Matter . | . . Retrieved Matter . | . . Retrieved Components 2 | . 2 Parts Scanalyzed . | . . Part Schematics Acquired . | . . Parts Damaged . | . . Bothacking | -11 -10 ------------ Run | Scr Mat Used RIF Installer . | . . Robots Hacked . | . . Non-combat . | . . Combat . | . . Robot Hacks Applied . | . . Relay Couplers Released . | . . Fabnet Peak Effective % . | . . Robots Rewired . | . . Allies Hacked . | . . Hacks Repelled . | . . Allies | -11 -10 -------- Run | Scr Mat Total Allies . | . . Largest Group . | . . Highest-Rated Group . | . . Highest-Rated Ally . | . . Total Orders . | . . Ally Attacks . | . . Total Damage . | . . Kills . | . . Allies Corrupted . | . . Allies Melted . | . . Intel | -11 -10 ------- Run | Scr Mat Robot Analysis Total . | . . Derelict Logs Recovered . | . . Drone Launches . | . . Drone Recoveries . | . . Exploration | -11 -10 ------------- Run | Scr Mat Turns Passed 259 | 62 197 Spaces Moved 177 | 39 138 Core 2 | 2 . Treads . | . . Legs . | . . Wheels 175 | 37 138 Hover . | . . Flight . | . . Fastest Speed 50 | 50 90 Average Speed 90 | 88 91 Slowest Speed 100 | 100 100 Overloaded Moves . | . . Propulsion Burnouts . | . . Robots Hopped . | . . Cave-ins Triggered . | . . Exploration Rate (%) 19 | 4 34 Regions Visited 1 Branch Regions . Pre-discovered Areas . | . . Known Exits Taken . | . . Unknown Exits Taken 1 | 1 . Scrap Searched . | . . Spaces Dug . | . . Terrain Destroyed 1 | . 1 Melee . | . . Projectile . | . . AOE 1 | . 1 Terrain Rammed . | . . Walls Destroyed . | . . Machines Disabled . | . . Actions | -11 -10 --------- Run | Scr Mat Total 238 | 62 176 Wait . | . . Move 176 | 38 138 Hop . | . . Pick Up 20 | 12 8 Fast Attach . | . . Attach 12 | 7 5 Detach 1 | 1 . Swap 2 | . 2 Drop 2 | 1 1 Fire 20 | 3 17 Melee . | . . Ram 5 | . 5 Kick . | . . Crush . | . . Escape Stasis . | . . Rewire . | . . Trap . | . . Miscellaneous . | . . Route ------- -11/Scrapyard -10/Materials History --------- Turn | Location | Event 11 | -11/Scrapyard | Discovered new exit (range 16) 63 | -11/Scrapyard | Entered Materials 240 | -10/Materials | Core integrity fell below 50% 259 | -10/Materials | Core integrity fell below 20% 260 | -10/Materials | Destroyed by G-34 Mercenary with Small Laser Last Messages --------------- 00221_ Destroyed Lgt. Armor Plating. 00223_ Ion Engine destroyed. 00228_ U-05 Engineer lays Concrete. 00228_ K-01 Serf collects debris. 00229_ U-05 Engineer lays Concrete. 00230_ U-05 Engineer builds a Wall. 00231_ Slammed into K-01 Serf. 00231_ Wheel destroyed. 00231_ System corrupted by crushing effect (+3). 00231_ Destabilizing: System corrupted (+2). 00231_ K-01 Serf sends out distress signal. 00232_ Med. Laser destroyed. 00237_ Slammed into G-47 Trooper. 00239_ EM Pulse Gun destroyed. 00247_ Acquired Welding Torch. 00255_ Slammed into G-47 Trooper. 00256_ Welding Torch destroyed. 00257_ Slammed into G-34 Mercenary. 00258_ Com. Wheel destroyed. 00258_ S-10 Pest destroyed. Map ----- +----------------------------------------------------+ | | | | | | | ?????????????????????????????????????????? | | ?????????????????????????????????????????? | | ?????????????????????????????????????????? | | ????????????????????????################## | | ???????????????????????? | | ??????????????????????? | | ???????????????????????? | | ????????????????????????????####### | | ????????????????????????????? ## | | ????????????????????????????? ## | | ????????????????????????????? ## | | ????????????????????????????? ## | | ????????????????????????????? ## | | ????????????????????????????? ## | | ????????????????????############### #### | | ???????##########???# / # | | ???????# ##### """ ### # | | ???????#""" # # """" ### # | | ???????#""" #ggg/ """" = #?# ^ #??? | | ???????#""" #gsg# """" #?#^ #??? | | ???????# %g # """ #?# #??? | | ???????#""" #g # #?# #??? | | ???????#""" #@ #############?# #??? | | ???????#""" # #?????????????? #??? | | ???????# # #?????????????? ??? | | ???????########## #?????????????? ??? | | ????????????????# #?????????????? T ??? | | ????????????????# #?????????????? ??? | | ????????????????# #?????????????? ? !#?? | | ????????????????# #?????????????? ? ???? | | ????????????????# #????????????????????? | | ???????????????? #????????????????????? | | ???????????????? #????????????????????? | | ???????????????? #????????????????????? | | ????????????????#####????????????????????? | | ?????????????????????????????????????????? | | ?????????????????????????????????????????? | | ?????????????????????????????????????????? | | ?????????????????????????????????????????? | | ?????????????????????????????????????????? | | ?????????????????????????????????????????? | | ?????????????????????????????????????????? | | ?????????????????????????????????????????? | | ?????????????????????????????????????????? | | ?????????????????????????????????????????? | | ?????????????????????????????????????????? | | ?????????????????????????????????????????? | +----------------------------------------------------+ Best States ------------- Heat Dissipation 35 Energy Generation 10 Energy Capacity 250 Matter Stores 300 Matter Capacity 300 Sight Range 16 Terrain Scan Density 10 Armor Coverage 150 Evasion (%) 42 Item Schematics ----------------- None Robot Schematics ------------------ None Fabricated ------------ Nothing Alien Tech Used ----------------- None Achievements -------------- None Challenges ------------ None Game ------ Seed LegIntegratedAutogun Manual? 0 Play Time 00:10:38 Cumulative 100.8 hours Start 2022.05.06 @ 16:25:55 End 2022.05.06 @ 16:33:29 Sessions 1 Manual Loads 0 Difficulty Rogue Special Mode None Game No. 43 Rogue 40 Adventurer 3 Explorer 0 Win Type - Total 0 Types 0/0/0/0/0/0/0/0/0 Lore% 16 Gallery% 40 Achievement% 27 Wizard Run 0 Options --------- ASCII 0 Keyboard 0 Movement Mouse Keybinds 0 Fullscreen 1 Font 18/SmallcapsGlow Map View 76x50 Tactical HUD 1 Map Filters NONE Filters NONE Steam 1 RUN: 70b60248-4fba-4cd3-9159-9a8f05a9a7b3